Cogmind - Beta 13 X1 *** ADVENTURER MODE // 2023.07.21 @ 12:31:40 // Winter2022/Polymind Player: Minty Result: Self-destructed Performance ------------- Evolutions (2) 1000 Regions Visited (6) 1200 Robots Destroyed (6) 30 Value Destroyed (97) 97 Prototype IDs (2) 40 Alien Tech Used (0) 0 Bonus (2796) 2796 TOTAL SCORE: 4913 Bonus ------- Polymind Skill 2126 Pacifist 470 Entered Garrisons 200 Cogmind --------- Core Integrity 155/550 Matter 0/0 Energy 23/100 System Corruption 1% Temperature Cool (0) Movement Core (50) Location -8/Materials Parts ------- > --- POWER (1) -------- (None) > --- PROPULSION (2) --- (None) > --- UTILITY (1) ------ (None) > --- WEAPON (0) ------- (None) > --- INVENTORY (0) ---- (None) Peak State ------------ > --- POWER ------------ Improved Ion Engine > --- PROPULSION ------- Light Treads Light Treads > --- UTILITY ---------- Heat Sink Heat Sink Light Armor Plating > --- WEAPON ----------- Beam Rifle Heavy Assault Rifle > --- INVENTORY -------- (None) [Rating: 11] Favorites ----------- Power Light Ion Engine Engine Light Ion Engine Propulsion Compact Wheel Treads Light Treads Wheel Compact Wheel Hover Unit Hover Unit Flight Unit Flight Unit Utility Heat Sink Device Heat Sink Storage Small Storage Unit Processor Visual Processing Unit Hackware Hacking Suite Protection Light Armor Plating Weapon Datajack Energy Gun Beam Rifle Ballistic Gun Heavy Assault Rifle Special Melee Weapon Datajack Build | -11 -10 -10 -9 -8 -8 -8 ------- Run | Jun Mat Min Mat Mat Gar Mat Slots Evolved . | . . . . . . . Power . | . . . . . . . Propulsion . | . . . . . . . Utility . | . . . . . . . Weapon . | . . . . . . . Parts Attached . | . . . . . . . Power . | . . . . . . . Engine . | . . . . . . . Core . | . . . . . . . Reactor . | . . . . . . . Propulsion . | . . . . . . . Treads . | . . . . . . . Leg . | . . . . . . . Wheel . | . . . . . . . Hover . | . . . . . . . Flight . | . . . . . . . Utility . | . . . . . . . Device . | . . . . . . . Storage . | . . . . . . . Processor . | . . . . . . . Hackware . | . . . . . . . Protection . | . . . . . . . Artifact . | . . . . . . . Weapon . | . . . . . . . Energy Gun . | . . . . . . . Energy Cannon . | . . . . . . . Ballistic Gun . | . . . . . . . Ballistic Cannon . | . . . . . . . Launcher . | . . . . . . . Special Weapon . | . . . . . . . Impact Weapon . | . . . . . . . Slashing Weapon . | . . . . . . . Piercing Weapon . | . . . . . . . Special Melee Weapon . | . . . . . . . Unidentified Prototypes . | . . . . . . . Parts Lost 7 | . . . 1 2 4 . Power 1 | . . . . . 1 . Propulsion 3 | . . . 1 1 1 . Utility 1 | . . . . . 1 . Weapon 2 | . . . . 1 1 . Highest Loss Streak 4 | . . . 1 2 4 . To Critical Strikes . | . . . . . . . Average Slot Usage (%) 76 | . 70 100 83 75 68 85 Engine 16 | . 17 16 16 20 13 17 Treads 3 | . . . . . 10 . Wheel 14 | . 35 . . . . 35 Hover 5 | . . 33 32 17 . . Flight 2 | . . . . . 7 . Device 8 | . . 16 2 . 10 15 Storage 7 | . 17 . . . . 17 Processor 1 | . . 33 5 . . . Hackware 4 | . . . 13 20 4 . Protection 1 | . . . . . 4 . Energy Gun 1 | . . . . . 5 . Ballistic Gun 3 | . . . . . 10 . Special Melee Weapon 3 | . . . 13 17 . . Naked Turns 110 | . 30 . 10 . 32 38 Heaviest Build 18 | . 5 4 4 4 18 9 Greatest Support 40 | 3 20 12 12 6 40 32 Greatest Overweight (x) 1 | . . . . 1 . . Average Overweight (x) . | . . . . . . . Largest Inventory Capacity 4 | . 1 . 1 1 1 4 Average Capacity 1 | . . . . 1 . 3 Most Carried 4 | . . . . . . 4 Average Carried . | . . . . . . 2 Final Capacity 1 | . . . 1 1 . . Final Carried . | . . . . . . . Class Distribution -------------------- 24% | Operator 20% | Recycler 15% | Cogmind 15% | Sentry 11% | Worker 7% | Swarmer 6% | Watcher Dominant Class ---------------- Worker | -10/Materials Watcher | -10/Mines Operator | -9/Materials Operator | -8/Materials Sentry | -8/Garrison Recycler | -8/Materials Resources | -11 -10 -10 -9 -8 -8 -8 ----------- Run | Jun Mat Min Mat Mat Gar Mat Matter Collected 17 | . . . . . 17 . Remotely . | . . . . . . . Salvage Created 144 | . . . . . 144 . Parts 10 | . . . . . 10 . Haulers Intercepted . | . . . . . . . Recyclers Shooed . | . . . . . . . Parts Field Recycled . | . . . . . . . Retrieved Matter . | . . . . . . . Parts Self-Destructed . | . . . . . . . Prevented . | . . . . . . . Kills | -11 -10 -10 -9 -8 -8 -8 ------- Run | Jun Mat Min Mat Mat Gar Mat Combat Hostiles Destroyed 6 | . . . . . 6 . Guns 6 | . . . . . 6 . Classes Destroyed 2 | . . . . . 2 . Swarmer 5 | . . . . . 5 . Grunt 1 | . . . . . 1 . Best Kill Streak 2 | . . . . . 2 . Combat Bots Only 2 | . . . . . 2 . Max Kills in Single Turn 1 | . . . . . 1 . Gunslinging . | . . . . . . . Exploded . | . . . . . . . Melee . | . . . . . . . Uniques/NPCs Destroyed . | . . . . . . . Combat | -11 -10 -10 -9 -8 -8 -8 -------- Run | Jun Mat Min Mat Mat Gar Mat Damage Taken 1241 | . . . 55 93 1019 74 Core 409 | . . . 14 33 326 36 Absorbed by Shields . | . . . . . . . Ignored by Resistances 370 | . . . 18 26 310 16 Core Remaining (%) 98 | 100 . 100 96 . . . Volleys Fired 27 | . . . . . 27 . Largest 2 | . . . . . 2 . Hottest 79 | . . . . . 79 . Shots Fired 31 | . . . . . 31 . Gun 31 | . . . . . 31 . Cannon . | . . . . . . . Launcher . | . . . . . . . Special . | . . . . . . . Kinetic 27 | . . . . . 27 . Thermal 4 | . . . . . 4 . Explosive . | . . . . . . . Electromagnetic . | . . . . . . . Robot Hit Streak 15 | . . . . . 15 . Robot Miss Streak 1 | . . . . . 1 . Penetration Max . | . . . . . . . Secondary Targets 2 | . . . . . 2 . Max Gunslinging Chain 1 | . . . . . 1 . Shots Hit Robots 28 | . . . 2 1 25 . Core Hits 11 | . . . . . 11 . Critical Kills . | . . . . . . . Critical Parts Destroyed . | . . . . . . . Critical Strikes . | . . . . . . . Melee Attacks 3 | . . . 2 1 . . Impact . | . . . . . . . Slashing . | . . . . . . . Piercing . | . . . . . . . Sneak Attacks 3 | . . . 2 1 . . Combat Hostiles . | . . . . . . . Follow-up Attacks . | . . . . . . . Damage Inflicted 278 | . . . . . 249 29 Guns 246 | . . . . . 246 . Cannons . | . . . . . . . Explosions . | . . . . . . . Melee . | . . . . . . . Ramming 32 | . . . . . 3 29 Kinetic 188 | . . . . . 188 . Thermal 58 | . . . . . 58 . Explosive . | . . . . . . . Electromagnetic . | . . . . . . . Impact . | . . . . . . . Slashing . | . . . . . . . Piercing . | . . . . . . . Highest Corruption 1 | . . . . . . 1 Average Corruption 1 | . . . . . . 1 Corruption Purged . | . . . . . . . Corruption Blocked . | . . . . . . . Overload Shots . | . . . . . . . Overflow Damage . | . . . . . . . Projectiles . | . . . . . . . Explosions . | . . . . . . . Melee . | . . . . . . . Knockbacks . | . . . . . . . Impact . | . . . . . . . Kinetic . | . . . . . . . Secondary . | . . . . . . . Self-Inflicted Damage 19 | . . . . . . 19 Shots . | . . . . . . . Rammed 8 | . . . . . 4 4 Targets Rammed 8 | . . . . . 4 4 Kicked . | . . . . . . . Crushed . | . . . . . . . Highest Temperature 137 | . . . 9 . 137 4 Average Temperature 65 | . . . 4 . 74 3 Received Heat Transfer 687 | . . . 39 45 567 36 Siege Activations . | . . . . . . . Robots Corrupted . | . . . . . . . Combat Hostiles . | . . . . . . . Parts Fried . | . . . . . . . Impact Corruptions . | . . . . . . . Robots Melted . | . . . . . . . Combat Hostiles . | . . . . . . . Parts Melted 1 | . . . . . 1 . Heat Transferred 148 | . . . . . 148 . Parts Sabotaged . | . . . . . . . Parts Stolen . | . . . . . . . Parts Stripped . | . . . . . . . Power Chain Reactions . | . . . . . . . Missiles Intercepted . | . . . . . . . Alert | -11 -10 -10 -9 -8 -8 -8 ------- Run | Jun Mat Min Mat Mat Gar Mat Peak Influence 258 | . 180 59 48 88 258 248 Initial 108 | . . 59 19 13 38 108 Average 95 | . 19 59 31 68 124 134 Maximum Alert Level 1 | . . . . . 1 1 Low Security (%) 92 | 100 100 100 100 100 90 83 Level 1 7 | . . . . . 9 16 Level 2 . | . . . . . . . Level 3 . | . . . . . . . Level 4 . | . . . . . . . Level 5 . | . . . . . . . High Security . | . . . . . . . Max Security . | . . . . . . . Squads Dispatched 4 | . . . 1 3 . . Investigation 4 | . . . 1 3 . . Extermination . | . . . . . . . Reinforcement . | . . . . . . . Assault . | . . . . . . . Garrison . | . . . . . . . Intercept . | . . . . . . . Searches Triggered . | . . . . . . . Construction Impeded . | . . . . . . . Haulers Reinforced . | . . . . . . . Active Scanning Responses . | . . . . . . . Cargo Convoy Interrupts . | . . . . . . . Stealth | -11 -10 -10 -9 -8 -8 -8 --------- Run | Jun Mat Min Mat Mat Gar Mat Distress Signals . | . . . . . . . Communications Jammed . | . . . . . . . Distress Signals . | . . . . . . . Times Spotted 46 | . 3 . 12 2 25 4 Peak Tracking Total 11 | . 2 . 9 2 11 2 Tactical Retreats 1 | . . . . . 1 . Traps | -11 -10 -10 -9 -8 -8 -8 ------- Run | Jun Mat Min Mat Mat Gar Mat Traps Triggered . | . . . . . . . Indirectly . | . . . . . . . Trap Hack Attempts 2 | . . . . 2 . . Triggered . | . . . . . . . Disarmed . | . . . . . . . Reprogrammed . | . . . . . . . Reused . | . . . . . . . Traps Extracted . | . . . . . . . Installed . | . . . . . . . Triggered . | . . . . . . . Machines | -11 -10 -10 -9 -8 -8 -8 ---------- Run | Jun Mat Min Mat Mat Gar Mat Machines Disabled . | . . . . . . . Max in Single Turn . | . . . . . . . Machines Repaired . | . . . . . . . Machines Sabotaged . | . . . . . . . Overloaded Fab Kills . | . . . . . . . Hacking | -11 -10 -10 -9 -8 -8 -8 --------- Run | Jun Mat Min Mat Mat Gar Mat Machines Accessed 11 | . 2 . 2 4 2 1 Terminals 6 | . . . 2 1 2 1 Fabricators . | . . . . . . . Repair Stations 1 | . 1 . . . . . Recycling Units 1 | . 1 . . . . . Scanalyzers 2 | . . . . 2 . . Garrison Access 1 | . . . . 1 . . Total Hacks 23 | . 2 . 10 6 4 1 Successful 19 | . 2 . 9 4 3 1 Failed 4 | . . . 1 2 1 . Catastrophic 1 | . . . . 1 . . Database Lockouts . | . . . . . . . Manual 8 | . 1 . 3 2 1 1 Terminals 17 | . . . 10 2 4 1 Fabricators . | . . . . . . . Repair Stations 1 | . 1 . . . . . Recycling Units 1 | . 1 . . . . . Scanalyzers 2 | . . . . 2 . . Garrison Access 2 | . . . . 2 . . Terminal Hacks 12 | . . . 8 1 2 1 Prototype ID Bank 1 | . . . 1 . . . Emergency Access Points 1 | . . . . . 1 . Recycling Unit Index 1 | . . . . . . 1 Alert Level 5 | . . . 5 . . . Reprogram Traps 1 | . . . 1 . . . Maintenance Status 1 | . . . 1 . . . Recall Investigation 1 | . . . . 1 . . Patrol Navigation 1 | . . . . . 1 . Fabricator Hacks . | . . . . . . . Repair Station Hacks 1 | . 1 . . . . . Refit 1 | . 1 . . . . . Recycling Unit Hacks 1 | . 1 . . . . . Report Inventory 1 | . 1 . . . . . Scanalyzer . | . . . . . . . Garrison Access Hacks 1 | . . . . 1 . . Unlock Access 1 | . . . . 1 . . Unauthorized Hacks 4 | . . . 1 2 1 . Terminals 2 | . . . 1 . 1 . Disrupt 1 | . . . 1 . . . Override 1 | . . . . . 1 . Fabricators . | . . . . . . . Repair Stations . | . . . . . . . Recycling Units . | . . . . . . . Scanalyzers 2 | . . . . 2 . . Extract 2 | . . . . 2 . . Garrison Access . | . . . . . . . Data Cores Recovered . | . . . . . . . Used . | . . . . . . . Hacking Detections 6 | . 2 . 2 1 1 . Full Trace Events 2 | . . . 1 1 . . Feedback Events . | . . . . . . . Feedback Blocked . | . . . . . . . Robot Schematics Acquired . | . . . . . . . Robots Built . | . . . . . . . Authchips . | . . . . . . . Time . | . . . . . . . Total Robot Build Rating . | . . . . . . . Part Schematics Acquired 12 | . . . . 12 . . Parts Built . | . . . . . . . Authchips . | . . . . . . . Time . | . . . . . . . Total Part Build Rating . | . . . . . . . Parts Repaired . | . . . . . . . Time . | . . . . . . . Parts Recycled . | . . . . . . . Recycled Matter . | . . . . . . . Retrieved Matter . | . . . . . . . Retrieved Components . | . . . . . . . Parts Scanalyzed . | . . . . . . . Part Schematics Acquired . | . . . . . . . Parts Damaged . | . . . . . . . Bothacking | -11 -10 -10 -9 -8 -8 -8 ------------ Run | Jun Mat Min Mat Mat Gar Mat Used RIF Installer . | . . . . . . . Robots Hacked 8 | . 1 . 3 1 2 1 Non-combat 6 | . 1 . 3 1 . 1 Combat 2 | . . . . . 2 . Robot Hacks Applied 9 | . 2 . 3 1 2 1 parse_system 2 | . . . 2 . . . find_recycling 2 | . . . . 1 . 1 find_terminals 1 | . . . 1 . . . map_route 1 | . 1 . . . . . mark_security 1 | . 1 . . . . . find_shortcuts 2 | . . . . . 2 . Relay Couplers Released . | . . . . . . . Fabnet Peak Effective % . | . . . . . . . Robots Rewired . | . . . . . . . Allies Hacked . | . . . . . . . Hacks Repelled . | . . . . . . . Allies | -11 -10 -10 -9 -8 -8 -8 -------- Run | Jun Mat Min Mat Mat Gar Mat Total Allies . | . . . . . . . Largest Group . | . . . . . . . Highest-Rated Group . | . . . . . . . Highest-Rated Ally . | . . . . . . . Total Orders . | . . . . . . . Ally Attacks . | . . . . . . . Total Damage . | . . . . . . . Kills . | . . . . . . . Allies Corrupted . | . . . . . . . Allies Melted . | . . . . . . . Intel | -11 -10 -10 -9 -8 -8 -8 ------- Run | Jun Mat Min Mat Mat Gar Mat Robot Analysis Total 6 | . 2 . 1 . 2 1 Derelict Logs Recovered . | . . . . . . . Drone Launches . | . . . . . . . Drone Recoveries . | . . . . . . . Exploration | -11 -10 -10 -9 -8 -8 -8 ------------- Run | Jun Mat Min Mat Mat Gar Mat Turns Passed 733 | 2 99 30 64 77 257 204 Spaces Moved 945 | 4 147 53 111 121 278 231 Core 346 | 4 59 . 21 9 183 70 Treads 57 | . . . . . 57 . Legs . | . . . . . . . Wheels 245 | . 84 . . . . 161 Hover 259 | . 4 53 90 112 . . Flight 38 | . . . . . 38 . Fastest Speed 37 | 50 50 56 50 50 37 50 Average Speed 69 | 50 67 56 55 60 71 83 Slowest Speed 160 | 50 80 56 60 100 160 100 Overloaded Moves . | . . . . . . . Propulsion Burnouts . | . . . . . . . Robots Hopped 2 | . . . . . 2 . Cave-ins Triggered . | . . . . . . . Exploration Rate (%) 24 | 1 28 26 22 19 51 25 Regions Visited 6 Branch Regions 1 Pre-discovered Areas . | . . . . . . . Known Exits Taken 3 | . 1 1 . 1 . . Unknown Exits Taken 2 | 1 . . 1 . . . Scrap Searched 1 | . . 1 . . . . Spaces Dug . | . . . . . . . Terrain Destroyed . | . . . . . . . Melee . | . . . . . . . Projectile . | . . . . . . . AOE . | . . . . . . . Terrain Rammed 1 | . . . . . . 1 Walls Destroyed . | . . . . . . . Machines Disabled . | . . . . . . . Actions | -11 -10 -10 -9 -8 -8 -8 --------- Run | Jun Mat Min Mat Mat Gar Mat Total 985 | 3 146 52 112 124 305 243 Wait . | . . . . . . . Move 935 | 3 146 52 110 121 272 231 Hop 2 | . . . . . 2 . Pick Up 5 | . . . . . . 5 Fast Attach . | . . . . . . . Attach . | . . . . . . . Detach . | . . . . . . . Swap . | . . . . . . . Drop 2 | . . . . . . 2 Fire 27 | . . . . . 27 . Melee 3 | . . . 2 1 . . Ram 5 | . . . . . . 5 Kick . | . . . . . . . Crush 4 | . . . . . 4 . Escape Stasis . | . . . . . . . Rewire . | . . . . . . . Trap 2 | . . . . 2 . . Miscellaneous . | . . . . . . . Route ------- -11/Junkyard -10/Materials (discovered 2 exits: Mat / *Min) -10/Mines -9/Materials -8/Materials -8/Garrison (discovered 3 exits: *Mat x3) -8/Materials History --------- Turn | Location | Event 1 | -11/Junkyard | Discovered new exit (range 1) 3 | -11/Junkyard | Entered Materials 87 | -10/Materials | Discovered new exit (range 7) 100 | -10/Materials | Discovered new exit (range 25) 101 | -10/Materials | Identified exit to Mines 102 | -10/Materials | Entered Mines 115 | -10/Mines | Found a damaged Exp. Sensor Array with a note attached 122 | -10/Mines | Discovered new exit (range 17) 131 | -10/Mines | Identified exit to Materials 132 | -10/Mines | Entered Materials 193 | -9/Materials | Discovered new exit (range 5) 196 | -9/Materials | Entered another Materials area 273 | -8/Materials | Identified exit to Garrison 273 | -8/Materials | Entered Garrison 283 | -8/Garrison | Identified exit to Materials 330 | -8/Garrison | Triggered checkpoint 420 | -8/Garrison | Triggered checkpoint 498 | -8/Garrison | Core integrity fell below 50% 517 | -8/Garrison | Lost 4 parts (1p1n1u1w) 530 | -8/Garrison | Entered Materials 734 | -8/Materials | Self-destructed Last Messages --------------- >>Index(Recycling Units) Found 2 recycling units. Downloaded coordinate data. 00670_ Dropped Imp. Grenade Launcher. 00670_ Dropped Targeting Computer. 00671_ Acquired Hvy. Armor Plating. 00704_ Slammed into W-25 Informer. 00708_ Released control of R-06 Scavenger. 00710_ R-06 Scavenger reactivates. 00716_ Took control of K-01 Serf. 00720_ Connecting with Terminal... 00720_ Slammed into Terminal. 00720_ Destabilizing: System corrupted (+1). 00720_ Lgt. Ion Engine broken. 00720_ Destabilizing: Short circuit. 00725_ Cleaned Material Processor. 00731_ Released control of K-01 Serf. 00731_ Critical hit (Burn: +37). 00732_ K-01 Serf reactivates. 00732_ Slammed into Y-45 Defender. Map ----- +----------------------------------------------------+ | !?????# ""S"" """ # #? # # | | ??????# "" "" """ + #? """ ! # """ """ ### | | ??????# """ # #? """ # """"""""" ### | | ??????# ! ] # ## """ # """"" T## | | ??????############## ## + ### | | !????????!!!???????# ## """ # ### | | ?????????/!!???????# #? """ # """ """ | | ?????????/!??[?????# #? """ # """"""""" | | ???????????????????# #? # """"" | | ???????????????????# #?######### | | ???????????????????# #???????#"" | | ??????????????????## ##??????#"T """ """ | | ??????????????????#% !#??????#"" """"""""" | | ??????????????????#* #??????### """"" | | ????????????####### %T ########## | | ?????? | | ????????????# ##### ############# | | ??????????###+#???## ##???????????? ## | | ??????????? ????# #?????????????########## #? | | ???????????# ?!?# ###########??????????### ## | | ???????????#]] ???# ## #??????????# | | ???????????#/] ???# ## #??????????# | | ???????????? ???# ## """ #??????????# | | ????????????? ??## ## """"" #??????????# | | ?? ##########+### # """"" #??????????# | | ? #@""""" #??????????## # | | ? T + Y"""k !#???????????# # | | ? # #???????????# # | | ????##### ###+### # #???????????# # | | ????????# ????????## ###########???#######?# # | | ???????????????????# #?????????????? ?# # | | ??????????????[!???# #??????????????""""" # # | | ???????????????????# #??????????????""""" # | | ???????????????????# #??????????????""""" + | | ???????????????????# #????????????# # | | ???????????????????# #????????????# """"" # # | | ???????????????????# #????????????# """"" ?# # | | ???????????????????# #???????????????"""" ?# # | | ???????????????????# #??????????????? ??# # | | ??????????????????? #??????????????#####??# # | | ??????????????????? #?????????????????????# # | | ??????????????????? #?????????????????????# # | | ??????????????????? #????????????????????? | | ??????????????????? ????????????????????? | | ??????????????????? ???????????????????? | | ??????????????????? ????????????????????? | | ???????????????????????????????????????????## | | ????????????????????????????????????????????###### | | ?????????????????????????????????????????????????? | | ?????????????????????????????????????????????????? | +----------------------------------------------------+ Best States ------------- Heat Dissipation 36 Energy Generation 17 Energy Capacity 215 Matter Stores 100 Matter Capacity 100 Sight Range 18 Robot Scan Range 14 Terrain Scan Density 10 Armor Coverage 150 Resistance: KI 20 Resistance: TH 20 Resistance: EX 70 Resistance: EM 20 Resistance: I 45 Resistance: S 20 Resistance: P 20 Evasion (%) 62 Recoil Reduction 2 Offensive Hacking 20 Item Schematics ----------------- Minigun | -8/Materials | Extracted Great Maul | -8/Materials | Extracted ECM Suite | -8/Materials | Extracted Imp. Terrain Scan Processor | -8/Materials | Extracted Ion Cannon | -8/Materials | Extracted Weight Redist. System | -8/Materials | Extracted Reactive Plating | -8/Materials | Extracted Lrg. Storage Unit | -8/Materials | Extracted Pulse Rifle | -8/Materials | Extracted Shield Generator | -8/Materials | Extracted Imp. Heat Sink | -8/Materials | Extracted Autogun | -8/Materials | Extracted Robot Schematics ------------------ None Fabricated ------------ Nothing Alien Tech Used ----------------- None Achievements -------------- None Challenges ------------ None Polymind | -11 -10 -10 -9 -8 -8 -8 ---------- Run | Jun Mat Min Mat Mat Gar Mat Hosts 7 | . 2 . 1 . 2 2 Combat Hostiles 2 | . . . . . 2 . Allies . | . . . . . . . Unique Host Classes 6 | . 2 . 1 . 2 1 Average Host Suspicion 48 | . 40 10 54 41 55 51 Unsuspicious Activity 123 | . 50 . 42 . 26 5 Returns to Shadow . | . . . . . . . Fuzzy Dispatches . | . . . . . . . Protomatter Created 12 | . . . . . 12 . Used 61 | . 17 . 5 . 29 10 Decayed 3 | . . . . . 3 . Highest Spend 23 | . 12 . 5 . 23 5 Top 5 Hosts by Kills: S-10 Pest (-8/Garrison: 4) Y-45 Defender (-8/Garrison: 2) Game ------ Seed MiniDefenseReconfigurator Manual? 0 Play Time 00:07:55 Cumulative 480.9 hours Start 2023.07.21 @ 12:25:02 End 2023.07.21 @ 12:31:40 Sessions 1 Manual Loads 0 Difficulty Adventurer Special Mode Winter2022/Polymind Game No. 391 Rogue 167 Adventurer 81 Explorer 143 Win Type - Total 22 Types 19/0/2/0/0/0/0/1/0 Lore% 69 Gallery% 88 Achievement% 71 Wizard Run 0 Options --------- ASCII 0 Keyboard 1 Movement Numpad Keybinds 0 Fullscreen 2 Font 18/X11Bold Map View 76x50 Tactical HUD 1 Map Filters NONE Filters NONE Steam 1 RUN: edf3ef9b-514d-4b54-b9e9-3c77a4a06333